bitfinex/quotes_ETHUSD_20260310
["timestamp","ask_amount","ask_price","bid_price","bid_amount"]
[1773170213465,1.22561035,2039.8,2039.2,1.22597096]
[1773170213764,1.22558834,2039.9,2039.2,1.22597096]
[1773170215369,1.22645294,2040.1,2039.2,1.22597096]
[1773170215573,1.22645294,2040.1,2039.3,0.47373885]
[1773170216676,0.46890455,2040.0,2039.3,0.0011]
[1773170217063,0.001,2039.9,2039.3,0.47483885]
[1773170217573,1.22655027,2039.9,2039.4,1.22585074]
[1773170219361,1.22655027,2039.9,2039.3,5.37847715]
[1773170219362,1.22655027,2039.9,2039.3,1.70070401]
[1773170219996,0.46890455,2039.8,2039.3,0.0011]
[1773170220151,0.001,2039.9,2039.3,0.47483885]
[1773170220345,0.001,2039.9,2039.4,0.52277287]
[1773170221174,0.001,2039.9,2039.4,0.47373885]
[1773170221791,0.001,2039.9,2039.4,0.52277287]
[1773170222195,1.22535086,2040.3,2039.6,0.47373885]
[1773170222512,0.46890455,2040.8,2040.0,0.47373885]
[1773170222659,0.32920481,2041.1,2040.3,0.47373885]
[1773170222660,2.02297671,2041.1,2040.3,0.47373885]
[1773170222854,2.02297671,2041.1,2040.3,1.52173885]
[1773170223050,0.32920481,2041.1,2040.4,0.47373885]
[1773170223378,1.55403602,2041.1,2040.4,0.47373885]
[1773170223561,2.02294057,2041.1,2040.3,1.52173885]
[1773170223766,0.46890455,2041.0,2040.2,1.048]
[1773170224244,0.46890455,2041.0,2040.0,0.47373885]
[1773170224245,0.46890455,2040.8,2040.0,0.47373885]
[1773170224448,0.46890455,2040.8,2040.0,1.69921863]
[1773170225053,0.46890455,2040.8,2039.9,4.90196078]
[1773170225054,0.46890455,2040.8,2039.7,5.37630132]
[1773170225267,0.46890455,2040.8,2039.8,1.22556565]
[1773170225461,0.46890455,2040.8,2039.7,2.74736367]
[1773170225977,0.46890455,2040.8,2039.8,0.04902441]
[1773170226161,1.22506982,2040.7,2040.0,1.22549019]
[1773170226551,0.46890455,2040.6,2039.8,1.22557302]
[1773170226796,4.89970476,2041.0,2040.0,2.88209732]
[1773170226957,4.89970476,2041.0,2039.7,5.95065855]
[1773170226958,2.40835847,2040.7,2039.7,1.69938675]
[1773170227162,0.46890455,2040.6,2039.7,0.47373885]
[1773170227555,4.89970476,2041.0,2039.6,1.048]
[1773170227556,0.46890455,2040.3,2039.6,1.048]
[1773170227752,0.46890455,2040.3,2039.6,2.27372841]
[1773170228068,0.46890455,2040.3,2039.7,0.01462954]
[1773170228398,1.22537006,2040.2,2039.7,0.04902681]
[1773170228909,1.22537006,2040.2,2039.6,2.27372798]
[1773170229102,1.22537006,2040.2,2039.7,0.04902681]
[1773170229814,1.22537006,2040.2,2039.6,1.048]
[1773170229978,1.22537006,2040.2,2039.6,1.09702922]
[1773170230185,4.90148024,2040.5,2039.6,2.79649586]
[1773170230186,1.2251899,2040.5,2039.6,2.79649586]
[1773170230496,1.2251899,2040.5,2039.9,0.0011]
[1773170230693,0.46890455,2040.4,2039.9,0.0011]
[1773170231180,1.69409445,2040.5,2039.9,0.0011]
[1773170231381,1.2251899,2040.5,2039.9,0.0011]
[1773170231575,1.2251899,2040.5,2039.9,0.05012201]
[1773170231820,1.2251899,2040.5,2039.9,0.0011]
[1773170233009,7.7788035,2040.6,2040.0,0.47373885]
[1773170233010,0.001,2040.6,2040.0,0.47373885]
[1773170233389,0.001,2040.6,2040.2,0.47373885]
[1773170233390,1.2261348,2040.6,2040.2,0.47373885]
[1773170233714,1.2261348,2040.6,2040.0,0.0490196]
[1773170234007,1.2261348,2040.6,2040.0,0.52275845]
[1773170235510,0.001,2040.6,2040.0,1.74822807]
[1773170235729,0.001,2040.6,2039.9,1.70034856]
[1773170236228,0.001,2040.6,2039.9,1.22660971]
[1773170236431,0.001,2040.6,2040.0,0.0490196]
[1773170236604,0.001,2040.6,2039.9,1.74940847]
[1773170237830,1.69503441,2040.6,2039.9,0.0011]
[1773170238331,1.22612986,2040.6,2039.9,1.74940215]
[1773170238519,1.22612986,2040.6,2040.0,0.47373885]
[1773170238725,1.22612986,2040.6,2040.0,0.52275845]
[1773170239735,0.001,2040.6,2040.1,0.49951431]
[1773170240433,0.001,2040.6,2040.3,0.49951431]
[1773170241316,0.001,2040.6,2040.0,1.7740098]
[1773170241508,0.001,2040.6,2040.1,0.49951431]
[1773170241708,0.001,2040.6,2040.2,1.22537006]
[1773170241936,0.001,2040.6,2040.2,1.72488437]
[1773170243037,0.001,2040.6,2040.1,1.048]
[1773170243211,0.001,2040.6,2040.1,2.27341566]
[1773170243409,0.001,2040.6,2040.2,0.0490148]
[1773170243937,0.001,2040.6,2040.1,2.27451566]
[1773170244611,0.001,2040.6,2040.1,2.32353286]
[1773170244933,0.001,2040.6,2040.1,1.0491]
[1773170245139,0.001,2040.6,2040.1,2.27452631]
[1773170245339,0.001,2040.6,2040.1,2.82305782]
[1773170245508,0.001,2040.6,2040.2,0.49951431]
[1773170245912,0.001,2040.6,2040.2,1.72487869]
[1773170246137,0.001,2040.6,2040.3,0.54852671]
[1773170246338,0.32920481,2041.1,2040.3,0.49951431]
[1773170246518,1.55404407,2041.1,2040.3,0.49951431]
[1773170246717,1.55404407,2041.1,2040.3,0.54852671]
[1773170246921,1.22483926,2041.1,2040.3,0.49951431]
[1773170247239,4.89881571,2041.5,2040.3,0.49951431]
[1773170247240,2.40835847,2041.5,2040.3,0.49951431]
[1773170247415,1.64253111,2041.4,2040.4,0.49951431]
[1773170247621,0.41788136,2041.3,2040.4,0.49951431]
[1773170247820,0.41788136,2041.2,2040.4,0.49951431]
[1773170248009,1.22464975,2041.4,2040.6,0.49951431]
[1773170248205,0.4178887,2041.3,2040.6,1.54851431]
[1773170248412,0.4178887,2041.2,2040.6,1.54851431]
[1773170248637,1.22464975,2041.4,2040.6,1.54851431]
[1773170248838,0.88350389,2041.3,2040.6,1.54851431]
[1773170249140,0.41783964,2041.2,2040.6,1.54851431]
[1773170249339,0.46566425,2041.3,2040.6,1.54851431]
[1773170249546,0.41778677,2041.2,2040.6,1.54851431]
[1773170249841,0.46566425,2041.3,2040.6,1.54851431]
[1773170250043,1.22457624,2041.6,2040.9,0.49951431]
[1773170250423,0.87449287,2041.8,2040.9,0.49951431]
[1773170251146,2.09890459,2041.8,2040.9,0.49951431]
[1773170251330,0.87449287,2041.8,2040.9,0.49951431]
[1773170251836,2.56457394,2041.8,2040.9,0.49951431]
[1773170252040,2.56457394,2041.8,2040.9,1.72442111]
[1773170252241,2.56457394,2041.8,2040.9,2.77342111]
[1773170252454,2.56457394,2041.8,2041.0,0.49951431]
[1773170252652,2.09891774,2041.8,2041.0,0.49951431]
[1773170253032,2.56458199,2041.8,2041.0,0.49951431]
[1773170253237,0.46566425,2041.7,2040.9,2.27394351]
[1773170253452,0.46566425,2041.7,2040.9,2.77345782]
[1773170253674,2.09891774,2041.8,2041.0,0.49951431]
[1773170254167,2.09891774,2041.8,2041.1,0.49951431]
[1773170254668,2.56458199,2041.8,2041.0,1.22484317]
[1773170254859,2.09891774,2041.8,2041.1,0.49951431]
[1773170255060,2.56458199,2041.8,2040.9,2.77342406]
[1773170255368,0.87449287,2041.8,2041.1,0.49951431]
[1773170255555,0.87449287,2041.8,2041.0,0.49951431]
[1773170255556,0.46566425,2041.7,2041.0,0.49951431]
[1773170255937,0.46566425,2041.6,2040.6,1.049]
[1773170256134,0.46566425,2041.4,2040.6,1.049]
[1773170256342,0.46566425,2041.7,2040.9,2.3995262]
[1773170256535,0.46566425,2041.7,2040.7,0.49951431]
[1773170256769,2.3995262,2041.4,2040.7,0.49951431]
[1773170256945,2.86519045,2041.4,2040.4,2.77372785]
[1773170257150,2.86519045,2041.4,2040.4,2.27421354]
[1773170257350,2.86519045,2041.4,2040.5,0.49951431]
[1773170257566,2.86519045,2041.4,2040.8,0.0011]
[1773170257964,0.001,2041.6,2040.8,0.0011]
[1773170258271,1.22458976,2041.5,2040.8,0.0011]
[1773170258574,1.22458976,2041.5,2040.8,0.04397119]
[1773170259070,1.69025401,2041.5,2040.8,0.04397119]
[1773170259271,1.69025401,2041.5,2040.8,0.0011]
[1773170260880,0.46566425,2041.4,2040.8,0.0011]
[1773170261370,0.46566425,2041.2,2040.8,0.0011]
[1773170262060,0.31566425,2041.2,2040.8,0.0011]
[1773170262782,1.22482974,2041.1,2040.8,0.0011]
[1773170263666,5.21498324,2041.2,2040.8,0.0011]
[1773170263667,1.2247852,2041.2,2040.8,0.0011]
[1773170264546,4.89903351,2041.3,2040.8,0.0011]
[1773170264547,4.8986452,2041.4,2040.8,0.0011]
[1773170264768,4.8986452,2041.4,2040.8,0.03277827]
[1773170264973,4.8986452,2041.4,2040.8,0.0011]
[1773170265376,4.8986452,2041.4,2040.8,1.2261064]
[1773170265581,4.8986452,2041.4,2040.8,1.25388125]
[1773170266080,4.8986452,2041.4,2040.8,1.75339556]
[1773170266280,1.22464975,2041.4,2040.9,0.49951431]
[1773170267169,1.22557105,2041.6,2041.0,1.22488975]
[1773170267485,6.40436078,2041.8,2041.3,0.49563949]
[1773170267486,0.87449287,2041.8,2041.3,0.49563949]
[1773170269088,2.09890338,2041.8,2041.3,0.49563949]
[1773170269395,2.09890338,2041.8,2041.4,1.22464975]
[1773170269785,2.09890338,2041.8,2041.3,1.7203051]
[1773170269985,0.87449287,2041.8,2041.4,0.47993338]
[1773170270150,1.22422347,2042.2,2041.4,0.47993338]
[1773170270491,1.2239902,2042.5,2041.4,0.47993338]
[1773170271062,0.001,2041.6,2041.4,0.47993338]
[1773170271269,1.2239902,2042.5,2041.4,0.47993338]
[1773170271460,1.2239902,2042.5,2041.6,0.47993338]
[1773170271660,1.2239902,2042.5,2041.7,0.47993338]
[1773170273579,0.47521241,2042.5,2041.7,1.70436125]
[1773170274471,4.89572113,2042.7,2041.8,2.87945958]
[1773170274704,4.89572113,2042.7,2041.9,0.47993338]
[1773170275401,0.47521241,2042.6,2041.6,2.75240325]
[1773170275606,1.69920261,2042.5,2041.6,2.75240325]
[1773170276505,1.2239902,2042.5,2041.7,0.47993338]
[1773170277311,4.8956002,2042.7,2041.7,0.47993338]
[1773170277510,4.8956002,2042.7,2041.8,0.47993338]
[1773170277687,4.8956002,2042.7,2042.0,0.47993338]
[1773170278287,5.37081261,2042.7,2041.7,1.048]
[1773170278490,4.8956002,2042.7,2041.8,0.47993338]
[1773170278712,5.37081261,2042.7,2041.8,0.47993338]
[1773170278910,0.47521241,2042.6,2041.8,0.47993338]
[1773170280118,1.2239902,2042.5,2041.8,1.70431729]
[1773170280604,0.47521241,2042.4,2041.6,0.04500407]
[1773170281342,1.2239902,2042.5,2041.5,0.47993338]
[1773170281343,0.47521241,2042.2,2041.5,0.47993338]
[1773170281530,0.47521241,2042.2,2041.3,1.048]
[1773170281737,0.47521241,2042.2,2041.3,2.27270744]
[1773170281939,1.22422995,2042.1,2041.3,2.75264082]
[1773170282451,1.22422995,2042.1,2041.4,0.50112678]
[1773170283244,1.22422995,2042.1,2041.4,0.47993338]
[1773170283547,1.22422995,2042.1,2041.5,0.47993338]
[1773170284346,1.22417001,2042.2,2041.6,1.72338353]
[1773170284552,1.22417001,2042.2,2041.7,0.47993338]
[1773170284850,1.22417001,2042.2,2041.8,0.01891851]
[1773170285152,1.22417001,2042.2,2041.7,0.47993338]
[1773170285457,4.89633323,2042.4,2041.7,0.49248929]
[1773170286113,4.89633323,2042.4,2041.7,0.49917853]
[1773170286317,0.47521241,2042.6,2041.8,1.22440983]
[1773170286648,0.47521241,2042.5,2041.6,1.70554648]
[1773170287215,0.47521241,2042.5,2041.7,0.0113807]
[1773170287649,0.47521241,2042.5,2041.6,0.48103338]
[1773170287947,0.47521241,2042.5,2041.6,1.70554795]
[1773170288148,0.47521241,2042.5,2041.6,0.48103338]
[1773170288357,1.69926254,2042.4,2041.6,1.71784008]
[1773170288738,1.69926254,2042.4,2041.6,1.71784173]
[1773170290231,1.22405013,2042.4,2041.7,0.47993338]
[1773170290459,4.89620054,2042.5,2041.8,1.71656942]
[1773170291033,4.89620054,2042.5,2041.9,0.47993338]
[1773170291355,0.47521241,2042.8,2041.9,0.47993338]
[1773170291924,1.22375055,2042.9,2041.9,0.47993338]
[1773170292157,0.47521241,2042.8,2041.9,0.47993338]
[1773170292461,0.47521241,2042.8,2041.7,1.70436966]
[1773170292462,0.47521241,2042.6,2041.7,1.70436966]
[1773170293132,1.22387036,2042.7,2041.8,0.49251059]
[1773170294564,4.89548147,2042.8,2042.0,0.47993338]
[1773170295549,0.47521241,2042.7,2041.8,1.7168796]
[1773170295750,0.47521241,2042.7,2041.9,0.47993338]
[1773170295953,0.47521241,2042.7,2042.0,0.01257597]
[1773170296172,0.47521241,2042.7,2042.0,0.49250935]
[1773170296672,4.89572113,2042.7,2042.0,1.71675505]
[1773170297040,4.89572113,2042.7,2042.0,1.70417908]
[1773170297246,4.89572113,2042.7,2042.1,0.47993338]
[1773170299165,5.37024451,2042.9,2042.1,1.70413234]
[1773170299374,0.4802694,2042.8,2042.1,1.70414914]
[1773170300176,1.22363075,2043.1,2042.2,0.46962074]
[1773170300475,1.70390015,2043.1,2042.2,0.46962074]
[1773170301395,1.22363075,2043.1,2042.4,0.46962074]
[1773170302340,0.4802694,2042.8,2041.9,5.36697882]
[1773170302540,0.4802694,2042.8,2042.0,0.46962074]
[1773170302960,0.4802694,2042.7,2042.0,0.46962074]
[1773170303165,0.4802694,2042.7,2041.8,1.22550355]
[1773170303387,1.22393028,2042.6,2041.9,0.46962074]
[1773170303761,4.89468699,2043.1,2041.9,0.46962074]
[1773170303762,1.70396005,2043.0,2041.9,0.46962074]
[1773170303962,0.4802694,2042.9,2041.9,0.46962074]
[1773170304480,1.22369065,2043.0,2041.9,0.46962074]
[1773170304676,1.22369065,2043.0,2042.1,0.46962074]
[1773170304870,1.22369065,2043.0,2042.2,0.00987302]
[1773170305065,1.22369065,2043.0,2042.3,0.46962074]
[1773170305466,1.22363075,2043.1,2042.4,1.69367087]
[1773170307075,1.22363075,2043.1,2042.4,1.22405013]
[1773170307287,1.22363075,2043.1,2042.5,0.46962074]
[1773170307993,1.22363075,2043.1,2042.5,1.69356688]
[1773170308163,1.70385991,2043.2,2042.5,1.69356688]
[1773170308367,1.22359051,2043.2,2042.6,0.46962074]
[1773170308567,4.89385057,2043.4,2042.6,0.46962074]
[1773170310189,0.4802694,2043.4,2042.6,1.69351477]
[1773170310597,0.4802694,2042.8,2042.0,0.46962074]
[1773170310803,0.01048517,2042.7,2042.0,0.46962074]
[1773170311171,0.01048517,2043.0,2042.0,0.46962074]
[1773170311571,0.4802694,2043.4,2042.3,0.46962074]
[1773170311776,0.49075457,2043.3,2042.3,0.46962074]
[1773170312786,1.22357086,2043.2,2042.5,1.2239902]
[1773170312987,0.01048517,2043.1,2042.6,0.04895721]
[1773170313189,0.01048517,2043.2,2042.6,0.46962074]
[1773170314287,0.49075457,2043.2,2042.5,1.048]
[1773170314509,0.01048517,2043.2,2042.6,0.46962074]
[1773170314686,0.01048517,2043.2,2042.7,0.04895481]
[1773170314903,0.01048517,2043.2,2042.7,1.27281458]
[1773170314904,1.23408476,2043.2,2042.7,1.27281458]
[1773170316713,4.8940872,2043.3,2042.6,1.69350949]
[1773170316714,0.01048517,2043.1,2042.6,1.69350949]
[1773170317017,1.23405603,2043.2,2042.6,1.69350949]
[1773170317314,0.01048517,2043.3,2042.7,0.46962074]
[1773170318434,0.01048517,2043.4,2042.7,0.46962074]
[1773170319329,1.23393813,2043.4,2042.8,1.22381045]
[1773170319528,1.71420753,2043.4,2042.8,1.22381045]
[1773170319700,1.23393813,2043.4,2042.8,1.73821809]
[1773170319901,0.01048517,2043.4,2042.8,1.73821809]
[1773170320101,4.89294934,2043.8,2043.0,0.46962074]
[1773170320322,0.01048517,2043.7,2043.0,0.46962074]
[1773170320903,0.49075457,2043.7,2042.8,2.27181045]
[1773170321342,1.70360077,2043.6,2042.8,2.27181045]
[1773170321538,0.4802694,2043.4,2042.6,1.22390961]
[1773170321708,0.01048517,2043.3,2042.7,0.48869081]
[1773170321910,1.22333137,2043.6,2042.8,0.46962074]
[1773170322110,0.01048517,2043.5,2042.9,0.46962074]
[1773170322532,1.22333137,2043.6,2042.9,0.46962074]
[1773170322733,0.01048517,2043.5,2042.9,0.46962074]
[1773170323439,1.22345111,2043.4,2042.8,1.22381045]
[1773170323613,1.22345111,2043.4,2042.9,0.01582915]
[1773170323938,0.01048517,2043.3,2042.9,0.01582915]
[1773170324138,0.01048517,2043.4,2042.9,0.01582915]
[1773170325121,1.22343536,2043.5,2042.9,0.48544989]
[1773170325323,4.8934339,2043.6,2043.0,1.22369065]
[1773170325735,0.01048517,2043.6,2043.0,1.69331139]
[1773170326553,1.22323051,2043.8,2043.1,0.46962074]
[1773170326749,0.01048517,2043.7,2043.1,0.46962074]
[1773170327674,0.01048517,2043.7,2043.2,1.68674155]
[1773170327875,1.22323153,2043.8,2043.2,1.68674155]
[1773170328037,1.22323153,2043.8,2043.3,0.46317069]
[1773170328238,1.23368268,2043.9,2043.3,0.46317069]
[1773170328657,1.22313146,2044.0,2043.3,0.46317069]
[1773170328939,0.01048517,2044.0,2043.3,0.46317069]
[1773170329943,1.22315181,2043.9,2043.3,1.68665525]
[1773170330161,1.22315181,2043.9,2043.3,0.46317069]
[1773170330481,0.01048517,2043.8,2043.4,1.051]
[1773170330837,0.01048517,2043.9,2043.4,1.051]
[1773170331879,1.22321166,2043.8,2043.4,2.75753015]
[1773170332043,0.01048517,2043.9,2043.4,2.75753015]
[1773170332540,1.23364844,2043.9,2043.4,2.75753015]
[1773170332747,1.23364844,2043.9,2043.4,2.75755575]
[1773170332958,1.23364844,2043.9,2043.3,1.051]
[1773170333167,0.4616351,2043.8,2043.0,4.89458741]
[1773170333384,0.4616351,2043.6,2042.9,2.75883581]
[1773170333557,0.01048517,2043.5,2042.9,2.75883581]
[1773170333966,1.22345111,2043.4,2042.9,2.75883581]
[1773170334962,4.29367619,2043.9,2043.0,0.50781143]
[1773170335171,4.89297952,2043.8,2043.0,0.50781143]
[1773170335491,0.01048517,2043.7,2043.1,0.48311534]
[1773170335681,1.23362318,2044.0,2043.3,0.48311534]
[1773170335996,2.69647666,2044.6,2043.6,0.48311534]
[1773170336164,2.69647666,2044.6,2043.5,1.22339124]
[1773170336165,0.4616351,2044.4,2043.5,1.22339124]
[1773170336361,0.01048517,2044.3,2043.5,1.70650658]
[1773170337388,0.47212027,2044.3,2043.5,1.70650658]
[1773170337571,0.47212027,2044.3,2043.6,1.053]
[1773170338082,0.4616351,2044.1,2043.6,1.053]
[1773170338278,0.01048517,2044.0,2043.6,1.053]
[1773170338459,0.01048517,2044.0,2043.6,2.27632454]
[1773170338661,0.01048517,2044.1,2043.6,2.27632454]
[1773170339496,1.22297231,2044.2,2043.6,2.27632454]
[1773170339799,0.01148517,2044.1,2043.6,2.27632454]
[1773170340600,0.4616351,2044.8,2043.8,0.48311534]
[1773170340778,5.35193079,2044.9,2044.1,0.48311534]
[1773170341006,0.4616351,2044.8,2043.7,0.48311534]
[1773170341205,0.4616351,2044.8,2043.9,0.48311534]
[1773170341419,1.38298241,2045.0,2044.0,0.48311534]
[1773170341800,0.4616351,2044.9,2044.0,0.48311534]
[1773170342115,0.4616351,2044.9,2043.7,0.48311534]
[1773170342318,0.4616351,2044.9,2043.8,1.055]
[1773170342518,0.4616351,2044.7,2043.9,1.055]
[1773170342827,0.4616351,2044.7,2043.4,0.48311534]
[1773170343036,0.4616351,2044.6,2043.5,1.055]
[1773170343333,0.4616351,2044.6,2043.6,0.02715559]
[1773170344812,0.4616351,2044.4,2043.6,1.25046949]
[1773170345222,1.22279285,2044.5,2043.7,0.48311534]
[1773170345730,1.22276784,2044.6,2043.8,2.90638762]
[1773170345929,1.84461868,2045.0,2044.1,2.87923469]
[1773170346134,1.84461868,2045.0,2044.2,1.057]
[1773170346607,1.84458068,2045.0,2044.2,1.057]
[1773170346928,1.38294558,2045.0,2044.3,1.22291248]
[1773170347738,1.84458444,2045.0,2044.3,1.22291248]
[1773170347946,0.4616351,2044.9,2043.9,1.70622712]
[1773170348105,0.4616351,2044.9,2043.9,2.76322712]
[1773170348303,0.4616351,2044.8,2043.8,1.057]
[1773170348933,0.4616351,2044.6,2043.8,2.28017829]
[1773170349128,0.4616351,2044.6,2043.7,1.22322404]
[1773170350932,1.22279285,2044.5,2043.6,4.89320455]
[1773170351327,1.68442795,2044.5,2043.5,0.48311534]
[1773170351534,0.4616351,2044.4,2043.5,2.76446472]
[1773170352824,0.4616351,2044.4,2043.8,0.0011]
[1773170353020,1.22291248,2044.3,2043.8,0.0011]
[1773170354324,1.68454758,2044.3,2043.8,0.0011]
[1773170356027,0.4616351,2044.2,2043.4,1.058]
[1773170356947,0.4616351,2044.2,2043.5,0.04893564]
[1773170357659,1.22295537,2044.3,2043.6,1.70644671]
[1773170357960,1.22287356,2044.4,2043.7,0.04893085]
[1773170358323,1.22287356,2044.4,2043.6,1.70644671]
[1773170358528,1.22287356,2044.4,2043.6,2.76444671]
[1773170359247,1.68450866,2044.4,2043.6,2.76444671]
[1773170360051,0.46432472,2044.3,2043.4,5.95265746]
[1773170360254,0.46432472,2044.3,2043.5,0.04893564]
[1773170361347,0.46432472,2044.3,2043.4,5.95265746]
[1773170361663,1.22297231,2044.2,2043.6,1.22333137]
[1773170362635,0.46432472,2044.1,2043.1,4.89440766]
[1773170362958,0.46432472,2044.1,2043.4,1.059]
[1773170363164,0.46432472,2044.1,2043.2,0.47972037]
[1773170363456,0.46432472,2044.1,2043.3,1.059]
[1773170364638,1.22309197,2044.0,2043.3,2.28351098]
[1773170364836,0.46432472,2043.9,2043.0,1.70336491]
[1773170365156,0.46432472,2043.7,2042.8,0.04626518]
[1773170366167,0.46432472,2043.7,2042.8,0.52598555]
[1773170366466,0.46432472,2043.7,2042.7,1.70465738]
[1773170366670,1.68765609,2043.6,2042.8,0.01759888]
[1773170367033,1.68765609,2043.6,2043.3,0.0011]
[1773170368765,1.68777583,2043.4,2043.3,0.0011]
[1773170369064,1.22333137,2043.6,2043.3,0.0011]
[1773170372400,0.46432472,2044.0,2043.3,0.0011]
[1773170372608,1.68741669,2044.0,2043.3,0.48082037]
[1773170372902,0.001,2044.2,2043.3,0.48082037]
[1773170372903,0.001,2044.2,2043.7,0.47972037]
[1773170373201,0.001,2044.2,2043.8,0.47972037]
[1773170374919,0.001,2044.2,2043.9,1.22315181]
[1773170376719,0.001,2044.2,2043.8,5.37251677]
[1773170376720,0.001,2044.2,2043.8,1.7028852]
[1773170376923,0.46532472,2044.2,2043.4,5.37334984]
[1773170377228,0.46532472,2044.2,2043.5,0.47972037]
[1773170377403,0.46532472,2044.2,2043.5,1.58715179]
[1773170378109,0.46532472,2044.2,2043.5,0.47972037]
[1773170378289,0.46532472,2044.2,2043.5,1.58965601]
[1773170378687,0.46532472,2044.2,2043.4,4.89362947]
[1773170378891,1.68735686,2044.1,2043.5,2.2843496]
[1773170379394,1.22303214,2044.1,2043.5,2.76406997]
[1773170380309,1.22303214,2044.1,2043.5,1.70306997]
[1773170380615,1.22303214,2044.1,2043.5,2.76406997]
[1773170380812,0.46432472,2043.8,2043.3,0.0011]
[1773170381225,0.46432472,2043.8,2043.7,0.0011]
[1773170381405,0.46432472,2043.8,2043.3,0.0011]
[1773170381808,0.46432472,2043.8,2043.5,0.0011]
[1773170382202,1.68740147,2044.1,2043.5,0.0011]
[1773170383640,0.001,2044.2,2043.5,0.0011]
[1773170383795,0.001,2044.2,2043.5,1.70421161]
[1773170383998,0.001,2044.2,2043.6,0.04893325]
[1773170384302,0.001,2044.2,2043.5,1.75314725]
[1773170385527,0.001,2044.2,2043.5,1.70421161]
[1773170385528,0.46532472,2044.2,2043.5,1.70421161]
[1773170385732,1.22303214,2044.1,2043.5,0.0011]
[1773170387104,1.68834412,2044.2,2043.5,0.45894171]
[1773170387726,0.001,2044.2,2043.6,2.79093665]
[1773170387935,0.001,2044.2,2043.6,2.74217308]
[1773170388453,0.47567846,2044.2,2043.6,2.28433137]
[1773170388800,0.47567846,2044.2,2043.5,1.22444638]
[1773170389034,0.47567846,2044.2,2043.6,1.061]
[1773170389416,0.47567846,2044.2,2043.6,1.53377751]
[1773170389737,0.47567846,2044.2,2043.8,1.22321166]
[1773170389738,0.001,2044.2,2043.8,1.22321166]
[1773170390529,0.001,2044.2,2043.8,1.69598917]
[1773170391433,1.67692123,2044.7,2043.9,0.47277751]
[1773170391826,4.8905624,2044.8,2044.1,0.47277751]
[1773170392027,4.8905624,2044.8,2044.1,1.53377751]
[1773170392408,1.22261345,2044.8,2044.1,1.53377751]
[1773170392805,1.67681406,2044.8,2044.1,1.53377751]
[1773170393103,0.45420061,2044.7,2044.0,2.28409197]
[1773170394119,1.22273305,2044.6,2044.0,2.28409197]
[1773170395045,0.001,2044.5,2044.0,2.28409197]
[1773170395415,0.001,2044.5,2044.0,2.28509197]
[1773170396751,0.45520061,2044.5,2043.9,1.22420349]
[1773170399656,1.22285267,2044.4,2043.9,1.696981]
[1773170399821,1.67803874,2044.5,2043.9,1.696981]
[1773170400224,1.67803874,2044.5,2044.0,1.062]
[1773170400550,0.45420061,2044.4,2044.0,1.062]
[1773170400736,0.45420061,2044.4,2043.9,0.0011]
[1773170400939,0.45420061,2044.4,2043.8,1.062]
[1773170401537,0.45420061,2044.2,2043.8,1.062]
[1773170401967,0.45420061,2044.2,2043.5,2.28643456]
[1773170402160,0.45420061,2044.2,2043.5,0.0011]
[1773170402360,0.45420061,2044.2,2043.5,1.22446905]
[1773170402566,0.45420061,2044.2,2043.5,0.0011]
[1773170403080,0.45420061,2044.2,2043.5,1.27341672]
[1773170403284,0.45420061,2044.4,2043.6,0.47277751]
[1773170403590,1.22291248,2044.3,2043.5,0.0011]
[1773170403744,1.67803522,2044.5,2043.5,0.50306208]
[1773170404093,0.001,2044.5,2043.7,0.47277751]
[1773170404272,1.67799971,2044.5,2043.8,1.062]
[1773170404579,1.67799971,2044.5,2043.5,1.07834525]
[1773170404580,0.45420061,2044.4,2043.5,1.07834525]
[1773170404879,0.45420061,2044.4,2043.6,0.04893325]
[1773170405244,0.45420061,2044.4,2043.5,1.0631]
[1773170405559,0.45420061,2044.4,2043.6,0.01644402]
[1773170406047,0.45420061,2044.2,2043.6,1.22333137]
[1773170406663,0.45420061,2044.2,2043.5,2.28644259]
[1773170406861,0.45420061,2044.2,2043.5,0.0011]
[1773170408179,0.45420061,2044.0,2043.8,0.0011]
[1773170408386,1.22303214,2044.1,2043.8,0.0011]
[1773170409096,1.67723275,2044.1,2043.8,0.0011]
[1773170412415,0.45420061,2044.0,2043.5,0.0011]
[1773170414017,0.45420061,2043.8,2043.0,1.2247781]
[1773170414486,0.45420061,2043.8,2043.0,0.47387751]
[1773170414487,1.22327151,2043.7,2043.0,0.47387751]
[1773170414689,1.67747212,2043.7,2043.0,0.47387751]
[1773170415101,0.45420061,2043.6,2043.0,0.0011]
[1773170416508,1.67755897,2043.6,2043.0,0.0011]
[1773170419013,0.45420061,2043.5,2043.0,0.0011]
[1773170420233,0.45420061,2043.5,2042.7,1.22493715]
[1773170420894,0.47079327,2043.3,2042.7,0.0011]
[1773170422216,0.47079327,2043.3,2043.2,0.0011]
[1773170422523,0.47179327,2043.3,2043.2,0.0011]
[1773170423018,0.001,2043.3,2043.2,0.0011]
[1773170423734,0.47079327,2043.2,2043.0,0.0011]
[1773170424023,0.47079327,2043.2,2042.7,0.0011]
[1773170424825,0.47079327,2043.2,2042.4,0.048962]
[1773170424995,0.47079327,2043.0,2042.2,1.22413196]
[1773170425889,0.47079327,2043.0,2042.2,1.27283651]
[1773170426115,0.47079327,2043.0,2042.3,0.4911601]
[1773170426314,0.47079327,2043.0,2042.4,0.04869978]
[1773170426522,1.69440294,2043.2,2042.4,0.53985988]
[1773170426923,0.47079327,2043.1,2042.4,0.4911601]
[1773170427223,1.69444538,2043.1,2042.5,1.2239902]
[1773170427423,0.47079327,2043.0,2042.4,1.2240249]
[1773170428001,0.47079327,2043.2,2042.5,0.53949874]
[1773170428208,1.69438062,2043.2,2042.5,0.4911601]
[1773170428625,0.001,2043.3,2042.5,0.4911601]
[1773170428802,0.001,2043.3,2042.7,0.4911601]
[1773170429331,0.001,2043.3,2042.8,1.76392296]
[1773170429696,0.001,2043.3,2042.8,1.71497055]
[1773170430426,0.001,2043.3,2042.9,0.4911601]
[1773170431513,0.001,2043.3,2043.0,1.22369065]
[1773170432520,0.47179327,2043.3,2042.3,2.39362284]
[1773170432726,0.47179327,2043.3,2042.5,2.2859902]
[1773170433019,0.47179327,2043.3,2042.6,0.04110827]
[1773170433857,0.47079327,2043.1,2042.2,2.28617001]
[1773170434318,0.47079327,2043.1,2042.3,0.03710593]
[1773170435018,0.47079327,2043.1,2042.2,1.22417001]
[1773170435215,0.47079327,2043.1,2042.2,1.26181972]
[1773170435423,0.47079327,2043.1,2042.6,0.0011]
[1773170435932,0.47079327,2042.9,2042.6,0.0011]
[1773170436131,0.47079327,2042.9,2041.9,0.4911601]
[1773170436435,0.47079327,2042.9,2042.0,0.4911601]
[1773170436767,0.47079327,2042.9,2041.9,1.22430392]
[1773170437051,0.47079327,2042.7,2041.8,0.0011]
[1773170437350,0.47079327,2042.7,2041.8,1.22548183]
[1773170438360,0.47079327,2042.8,2041.9,0.54013409]